bitfinex-derivatives/quotes_ETHF0:USTF0_20241027
["timestamp","ask_amount","ask_price","bid_price","bid_amount"]
[1730056919612,1.56143172,2489.1,2489.0,0.84607]
[1730056919910,1.6164578,2489.1,2489.0,0.84607]
[1730056926613,1.2142878,2489.1,2489.0,0.84607]
[1730056927208,1.6164578,2489.1,2489.0,0.84607]
[1730056928713,1.2142878,2489.1,2489.0,0.84607]
[1730056930004,1.6164578,2489.1,2489.0,0.84607]
[1730056930214,1.2142878,2489.1,2489.0,0.84607]
[1730056930919,1.6164578,2489.1,2489.0,0.84607]
[1730056931122,1.2142878,2489.1,2489.0,0.84607]
[1730056931513,6.23844172,2489.5,2489.3,0.40212]
[1730056931514,3.6248,2489.5,2489.3,0.40212]
[1730056931817,0.8191,2489.5,2489.4,1.26862]
[1730056932019,1.6441,2489.5,2489.4,1.26862]
[1730056933219,0.8191,2489.5,2489.4,1.26862]
[1730056933516,1.6441,2489.5,2489.4,1.26862]
[1730056933719,2.80336172,2489.5,2489.4,1.26862]
[1730056934619,0.40209,2489.7,2489.6,0.40207]
[1730056934822,2.38635172,2489.7,2489.6,0.40207]
[1730056936422,0.40205,2489.9,2489.5,1.00526]
[1730056936618,0.825,2489.7,2489.6,0.83289]
[1730056936816,1.98426172,2489.7,2489.6,0.83289]
[1730056937515,1.15926172,2489.7,2489.6,0.83289]
[1730056938822,1.15926172,2489.7,2489.6,4.84969]
[1730056940917,1.15926172,2489.7,2489.6,8.05749]
[1730056941110,0.825,2490.0,2489.6,9.21675172]
[1730056941317,1.15926172,2489.8,2489.7,1.97243172]
[1730056941722,1.15926172,2489.8,2489.7,5.98923172]
[1730056943920,1.15926172,2489.8,2489.7,4.82997]
[1730056944126,1.15926172,2489.8,2489.7,0.81317]
[1730056944427,1.15926172,2489.8,2489.7,4.82997]
[1730056945228,0.40207,2489.7,2489.6,3.2078]
[1730056945527,0.40207,2489.7,2489.4,0.4458]
[1730056945528,0.4021,2489.6,2489.5,0.40209]
[1730056945732,1.56136172,2489.6,2489.5,0.40209]
[1730056946631,0.40214,2489.4,2489.3,0.40212]
[1730056946924,1.56140172,2489.4,2489.3,0.40212]
[1730056952222,1.56140172,2489.4,2489.2,0.40214]
[1730056952223,0.40215,2489.3,2489.2,0.40214]
[1730056952424,1.98671172,2489.3,2489.2,0.40214]
[1730056953522,1.58456172,2489.3,2489.1,3.2078]
[1730056953727,2.42961172,2489.2,2489.1,3.60996]
[1730056954327,2.42961172,2489.2,2489.1,3.2078]
[1730056954933,2.42961172,2489.2,2489.1,3.60997]
[1730056955928,2.42961172,2489.2,2489.1,0.40217]
[1730056956431,0.40218,2489.1,2489.0,0.40217]
[1730056956630,1.56144172,2489.1,2489.0,0.40217]
[1730056957436,1.56144172,2489.1,2488.9,3.60999]
[1730056957437,0.40218,2489.0,2488.9,3.60999]
[1730056957637,2.38644172,2489.0,2488.9,3.60999]
[1730056957935,0.40223,2488.8,2488.7,0.40222]
[1730056958236,1.56149172,2488.8,2488.7,0.40222]
[1730056958943,2.72075344,2488.8,2488.7,0.40222]
[1730056959434,0.40225,2488.7,2488.6,0.40223]
[1730056959735,2.39301172,2488.7,2488.6,0.40223]
[1730056960837,2.39301172,2488.7,2488.4,0.40227]
[1730056960838,0.40229,2488.5,2488.4,0.40227]
[1730056961037,2.38655172,2488.5,2488.4,0.40227]
[1730056961831,2.38655172,2488.5,2488.3,0.40229]
[1730056961832,0.4023,2488.4,2488.3,0.40229]
[1730056962140,0.4023,2488.3,2488.2,3.6101]
[1730056962329,1.56156172,2488.3,2488.2,3.6101]
[1730056962927,1.15926172,2488.3,2488.2,3.6101]
[1730056964036,1.15926172,2488.3,2488.2,0.4023]
[1730056967733,0.82449,2488.4,2488.1,3.2078]
[1730056967734,0.4222,2488.4,2488.3,0.4023]
[1730056967939,1.58146172,2488.4,2488.3,0.4023]
[1730056968733,1.98374172,2488.4,2488.3,0.4023]
[1730056969333,1.58146172,2488.4,2488.3,0.4023]
[1730056970045,1.98374172,2488.4,2488.3,0.4023]
[1730056971137,1.58146172,2488.4,2488.3,0.4023]
[1730056971644,1.98374172,2488.4,2488.3,0.4023]
[1730056972645,1.58146172,2488.4,2488.3,0.4023]
[1730056973750,1.98374172,2488.4,2488.3,0.4023]
[1730056976060,1.58146172,2488.4,2488.3,0.4023]
[1730056976960,1.98374172,2488.4,2488.3,0.4023]
[1730056977458,1.58146172,2488.4,2488.3,0.4023]
[1730056977857,1.98374172,2488.4,2488.3,0.4023]
[1730056978460,1.58146172,2488.4,2488.3,0.4023]
[1730056978663,1.98374172,2488.4,2488.3,0.4023]
[1730056979157,1.58146172,2488.4,2488.3,0.4023]
[1730056979363,1.98374172,2488.4,2488.3,0.4023]
[1730056979559,1.58146172,2488.4,2488.3,0.4023]
[1730056981159,1.98374172,2488.4,2488.3,0.4023]
[1730056987164,1.58146172,2488.4,2488.3,0.4023]
[1730056989174,1.98374172,2488.4,2488.3,0.4023]
[1730056990370,1.56154172,2488.4,2488.3,0.4023]
[1730056990967,1.15926172,2488.4,2488.3,0.4023]
[1730056991169,1.56154172,2488.4,2488.3,0.4023]
[1730056991970,0.40231,2488.2,2488.1,3.61011]
[1730056992270,0.31193,2488.1,2488.0,1.27174]
[1730056992472,2.63045344,2488.1,2488.0,1.27174]
[1730056993361,6.33772344,2488.1,2487.7,1.45739]
[1730056993565,1.67706,2488.0,2487.9,0.40235]
[1730056994968,2.83632172,2488.0,2487.9,0.40235]
[1730056995274,2.43396172,2488.0,2487.9,0.40235]
[1730056995572,2.83631172,2488.0,2487.9,0.40235]
[1730056997269,0.8197,2488.3,2488.2,0.40231]
[1730056997472,2.40166172,2488.3,2488.2,0.40231]
[1730056997876,6.42086172,2488.3,2488.2,0.40231]
[1730056998472,5.59586172,2488.3,2488.2,0.40231]
[1730056998674,2.40166172,2488.3,2488.2,0.40231]
[1730056998887,2.38656172,2488.3,2488.2,0.40231]
[1730057003671,1.56156172,2488.3,2488.2,0.40231]
[1730057003870,2.38656172,2488.3,2488.2,0.40231]
[1730057004080,1.98426172,2488.3,2488.2,0.40231]
[1730057005175,2.38656172,2488.3,2488.2,0.40231]
[1730057007883,1.98426172,2488.3,2488.2,0.40231]
[1730057009075,2.38656172,2488.3,2488.2,0.40231]
[1730057011582,0.40231,2488.2,2488.1,1.23212]
[1730057011777,2.00737172,2488.2,2488.1,1.23212]
[1730057012282,1.56157172,2488.2,2488.1,1.23212]
[1730057016487,1.56157172,2488.2,2488.1,4.43992]
[1730057017486,5.58077172,2488.2,2488.1,3.61012]
[1730057017987,1.56157172,2488.2,2488.1,3.61012]
[1730057018786,1.56157172,2488.2,2488.1,0.40232]
[1730057018979,1.56157172,2488.2,2488.1,3.61012]
[1730057020583,1.56157172,2488.2,2488.1,0.40232]
[1730057021083,1.56157172,2488.2,2488.1,3.61012]
[1730057021584,1.15926172,2488.2,2488.1,3.61012]
[1730057023079,1.56157172,2488.2,2488.1,3.61012]
[1730057023384,1.15926172,2488.2,2488.1,3.61012]
[1730057024187,1.15926172,2488.2,2488.1,7.62932]
[1730057024887,1.15926172,2488.3,2488.2,0.40231]
[1730057025095,1.15926172,2488.3,2488.2,0.82881]
[1730057029291,1.15926172,2488.4,2488.3,0.4023]
[1730057029498,1.15926172,2488.4,2488.3,4.8729]
[1730057030294,1.56154172,2488.4,2488.3,4.8729]
[1730057030491,1.15926172,2488.4,2488.3,4.8729]
[1730057030802,1.56154172,2488.4,2488.3,4.8729]
[1730057032196,1.56154172,2488.4,2488.3,8.0807]
[1730057032599,1.56154172,2488.4,2488.3,3.6101]
[1730057032802,0.40233,2488.2,2488.1,0.40232]
[1730057032996,1.56159172,2488.2,2488.1,0.40232]
[1730057033703,1.15926172,2488.2,2487.7,1.00596]
[1730057033897,1.15926172,2487.8,2487.7,0.82379]
[1730057034093,1.56164172,2487.8,2487.7,0.82379]
[1730057034604,1.06164172,2487.8,2487.7,0.82379]
[1730057034796,0.40238,2487.9,2487.7,0.4214]
[1730057034997,1.15926172,2487.8,2487.7,0.82379]
[1730057037804,1.15926172,2487.8,2487.7,1.25629]
[1730057038599,1.15926172,2487.8,2487.7,4.46409]
[1730057046713,1.15926172,2487.8,2487.7,0.40239]
[1730057046714,1.56164172,2487.8,2487.7,0.40239]
[1730057047208,2.00404172,2487.8,2487.7,0.40239]
[1730057048219,1.15926172,2487.8,2487.7,1.15926172]
[1730057048418,0.825,2487.8,2487.7,4.76945172]
[1730057049107,0.825,2487.8,2487.7,5.17765172]
[1730057050102,0.4375,2488.1,2487.7,8.79526172]
[1730057050307,1.59676172,2488.1,2488.0,0.40235]
[1730057050815,1.99909172,2488.1,2488.0,0.40235]
[1730057051816,1.15926172,2488.1,2488.0,0.40235]
[1730057052114,1.56159172,2488.1,2488.0,0.40235]
[1730057052314,1.56159172,2488.1,2488.0,0.84805]
[1730057053614,1.15926172,2488.1,2488.0,0.84805]
[1730057055311,1.56159172,2488.1,2488.0,0.84805]
[1730057055622,1.15926172,2488.1,2488.0,0.84805]
[1730057056720,0.4023,2488.4,2488.3,0.40228]
[1730057056916,2.38656172,2488.4,2488.3,0.40228]
[1730057057516,2.38654172,2488.4,2488.3,0.40228]
[1730057068821,2.38658172,2488.4,2488.3,0.40228]
[1730057070324,0.40235,2488.2,2488.1,0.4314]
[1730057070627,1.56161172,2488.2,2488.1,0.83377]
[1730057070827,1.56161172,2488.2,2488.1,0.4314]
[1730057071219,0.40239,2488.0,2487.9,0.83489]
[1730057071523,1.56165172,2488.0,2487.9,0.83489]
[1730057071724,1.56165172,2488.0,2487.7,1.00609]
[1730057071725,0.4024,2487.9,2487.8,0.40241]
[1730057071916,1.99646172,2487.9,2487.8,0.40241]
[1730057073329,2.82146172,2487.9,2487.8,0.40241]
[1730057073525,0.40244,2487.8,2487.7,0.40242]
[1730057073723,1.56170172,2487.8,2487.7,0.40242]
[1730057074926,1.15926172,2487.8,2487.7,0.40242]
[1730057075322,1.56168172,2487.8,2487.7,0.40242]
[1730057076122,1.15926172,2487.8,2487.7,0.40242]
[1730057078527,0.825,2487.9,2487.7,5.17926172]
[1730057078731,0.825,2487.9,2487.8,0.40242]
[1730057080829,0.825,2487.9,2487.8,1.56168172]
[1730057081233,1.98426172,2488.1,2488.0,0.40239]
[1730057081427,1.98426172,2488.1,2488.0,1.26869]
[1730057082233,0.825,2488.1,2488.0,1.26869]
[1730057082623,1.98426172,2488.1,2488.0,1.26869]
[1730057087234,0.825,2488.1,2488.0,1.26869]
[1730057087733,1.15926172,2488.2,2488.1,0.40237]
[1730057089535,0.4325,2488.4,2488.1,0.40237]
[1730057089739,2.41676172,2488.4,2488.3,0.40234]
[1730057099547,0.825,2488.4,2488.3,1.56160172]
[1730057100051,1.98426172,2488.4,2488.3,1.56160172]
[1730057100943,0.8297,2488.7,2488.6,0.40229]
[1730057101252,2.81396172,2488.7,2488.6,0.40229]
[1730057101446,2.31396172,2488.7,2488.6,0.40229]
[1730057101649,0.98896172,2488.7,2488.6,0.40229]
[1730057101944,0.48896172,2488.7,2488.6,0.40229]
[1730057102244,4.03276172,2488.8,2488.5,0.4268]
[1730057102451,4.03276172,2488.8,2488.7,0.40227]
[1730057102452,3.20776172,2488.8,2488.7,0.40227]
[1730057102654,4.70302344,2488.8,2488.7,0.40227]
[1730057103150,3.54376172,2488.8,2488.7,1.56153172]
[1730057103352,0.825,2488.8,2488.7,1.56153172]
[1730057103554,0.8033,2488.8,2488.7,1.56153172]
[1730057104156,1.96256172,2488.8,2488.7,0.40227]
[1730057110254,0.4146,2488.9,2488.7,1.15926172]
[1730057110462,3.2078,2489.2,2489.1,0.40221]
[1730057110752,5.19206172,2489.2,2489.1,0.40221]
[1730057110957,9.61185172,2489.2,2489.1,0.40221]
[1730057111258,5.19206172,2489.2,2489.1,0.40221]
[1730057111658,4.0328,2489.2,2489.1,0.40221]
[1730057111860,5.19206172,2489.2,2489.1,0.40221]
[1730057112564,5.59425172,2489.2,2489.1,0.40221]
[1730057113561,5.19206172,2489.2,2489.1,0.40221]
[1730057114258,5.59425172,2489.2,2489.1,0.40221]
[1730057114857,5.19206172,2489.2,2489.1,0.40221]
[1730057117857,1.98426172,2489.2,2489.1,0.40221]
[1730057118457,1.63448,2489.3,2489.2,0.40219]
[1730057118458,0.824,2489.3,2489.2,0.40219]
[1730057118658,0.824,2489.3,2489.2,1.97825172]
[1730057122255,0.824,2489.3,2489.2,0.81899]
[1730057122256,1.98326172,2489.3,2489.2,0.81899]
[1730057122458,0.40225,2488.9,2488.8,0.40224]
[1730057122663,1.15926172,2488.9,2488.8,0.40226]
[1730057124574,0.40223,2489.0,2488.9,0.40224]
[1730057124871,1.15926172,2489.0,2488.9,0.40224]
[1730057125273,1.56148172,2489.0,2488.9,0.40224]
[1730057125771,1.56148172,2489.0,2488.7,3.46034172]
[1730057125772,1.57836172,2489.1,2489.0,0.40222]
[1730057125968,1.2431,2489.1,2489.0,0.40222]
[1730057126270,2.40236172,2489.1,2489.0,0.40222]
[1730057126468,2.40236172,2489.1,2489.0,0.83292]
[1730057128367,0.8147,2489.2,2489.1,0.40221]
[1730057128368,0.824,2489.2,2489.1,0.40221]
[1730057128563,1.2491,2489.4,2489.1,1.56147172]
[1730057128765,1.15926172,2489.4,2489.3,0.40218]
[1730057128966,1.15926172,2489.4,2489.3,1.56144172]
[1730057129573,0.824,2489.5,2489.4,0.40216]
[1730057129772,1.98326172,2489.5,2489.4,0.40216]
[1730057129977,1.98326172,2489.5,2489.4,0.81896]
[1730057131276,1.15926172,2489.5,2489.4,0.81896]
[1730057132376,1.15926172,2489.5,2489.4,1.97822172]
[1730057135987,1.15926172,2489.5,2489.4,0.81896]
[1730057136189,0.40218,2489.4,2489.3,0.40217]
[1730057136388,1.56144172,2489.4,2489.3,0.40217]
[1730057136583,1.15926172,2489.4,2489.3,0.40217]
[1730057137087,1.56142172,2489.4,2489.3,0.40217]
[1730057137983,1.15926172,2489.4,2489.3,0.40217]
[1730057138493,0.40216,2489.4,2489.3,0.40217]
[1730057139492,1.15926172,2489.5,2489.2,1.60626172]
[1730057139688,0.40217,2489.4,2489.3,0.40216]
[1730057140182,0.40217,2489.4,2489.2,1.60626172]
[1730057140183,1.15926172,2489.5,2489.2,1.60626172]
[1730057140384,1.56142172,2489.5,2489.4,0.40216]
[1730057141289,0.40216,2489.5,2489.4,0.40216]
[1730057143790,1.98326172,2489.6,2489.5,0.40214]
[1730057144201,2.38539172,2489.6,2489.5,1.27514]
[1730057145102,1.98326172,2489.6,2489.5,1.27514]
[1730057145702,2.38539172,2489.6,2489.5,1.27514]
[1730057146298,2.38539172,2489.6,2489.5,0.85024]
[1730057146491,2.76309172,2489.6,2489.5,0.85024]
[1730057148301,5.56876172,2489.6,2489.3,1.58496172]
[1730057148508,0.40216,2489.5,2489.4,0.40215]
[1730057151305,5.97090172,2489.6,2489.5,0.40214]
[1730057153604,5.59320172,2489.6,2489.5,0.40214]
[1730057156795,5.19106172,2489.6,2489.3,0.8536]
[1730057156995,0.40216,2489.5,2489.4,0.40215]
[1730057160607,0.40216,2489.4,2489.3,1.25576]
[1730057161906,0.40215,2489.5,2489.4,0.40214]
[1730057174711,5.19106172,2489.6,2489.3,2.01286172]
[1730057174911,4.43394,2489.6,2489.5,0.40214]
[1730057175113,4.0318,2489.6,2489.5,0.40214]
[1730057175313,4.0318,2489.6,2489.5,1.56140172]
[1730057176016,3.2078,2489.6,2489.5,5.57820172]
[1730057176220,0.824,2489.8,2489.5,5.57820172]
[1730057176416,0.824,2489.8,2489.7,1.56137172]
[1730057176920,0.824,2489.8,2489.7,2.00047172]
[1730057179423,0.824,2489.8,2489.7,2.41807172]
[1730057180922,1.2261,2489.8,2489.7,2.41807172]
[1730057183424,0.824,2489.8,2489.7,2.41807172]
[1730057184018,1.2261,2489.8,2489.7,2.41807172]
[1730057184416,1.98326172,2489.8,2489.4,3.2078]
[1730057184718,1.15926172,2489.5,2489.4,0.40215]
[1730057184922,1.56139172,2489.6,2489.5,0.40214]
[1730057185323,1.56139172,2489.6,2489.5,0.83634]
[1730057186828,1.56139172,2489.6,2489.5,0.4342]
[1730057187023,1.56139172,2489.6,2489.5,0.83634]
[1730057187726,1.56139172,2489.6,2489.5,0.4342]
[1730057188631,1.56139172,2489.6,2489.5,0.83634]
[1730057189325,1.56139172,2489.6,2489.5,0.4342]
[1730057190325,1.56139172,2489.6,2489.5,0.83634]
[1730057191937,1.56139172,2489.6,2489.5,1.99560172]
[1730057191938,0.40213,2489.6,2489.5,1.99560172]
[1730057192327,2.00428172,2489.7,2489.6,0.40213]
[1730057192525,2.00428172,2489.7,2489.6,0.84533]
[1730057194827,2.00428172,2489.7,2489.6,0.4432]
[1730057208038,2.00428172,2489.7,2489.6,0.84533]
[1730057209843,0.824,2489.7,2489.6,2.00459172]
[1730057210036,0.824,2489.7,2489.6,2.42589172]
[1730057210441,1.22611,2489.7,2489.6,2.42589172]
[1730057212145,1.22611,2489.7,2489.6,1.26663]
[1730057212345,2.38537172,2489.7,2489.6,0.84533]
[1730057212540,2.81767172,2489.7,2489.6,0.84533]
[1730057213135,2.81767172,2489.7,2489.5,0.4342]
[1730057213136,0.40213,2489.6,2489.5,0.4342]
[1730057213334,0.82003,2489.6,2489.5,0.4342]
[1730057214549,1.64403,2489.6,2489.5,0.83634]
[1730057215542,1.64403,2489.6,2489.5,0.4342]
[1730057216344,2.80329172,2489.6,2489.5,0.4342]
[1730057216538,0.40214,2489.5,2489.4,2.0085161]
[1730057216740,5.57820172,2489.5,2489.4,2.0085161]
[1730057217144,4.0318,2489.6,2489.5,0.40214]
[1730057217449,0.824,2489.6,2489.5,1.97710172]
[1730057217649,0.824,2489.6,2489.5,2.41780172]
[1730057221347,1.22613,2489.6,2489.5,2.41780172]
[1730057221547,0.824,2489.6,2489.5,2.41780172]
[1730057222949,1.22613,2489.6,2489.5,2.41780172]
[1730057223553,0.824,2489.6,2489.5,2.41780172]
[1730057223853,1.22613,2489.6,2489.5,2.41780172]
[1730057226254,0.40213,2489.6,2489.5,2.41780172]
[1730057226455,1.22613,2489.6,2489.5,2.41780172]
[1730057227253,0.824,2489.6,2489.5,2.41780172]
[1730057228949,1.22613,2489.6,2489.5,2.41780172]
[1730057230757,0.73713,2489.6,2489.5,2.41780172]
[1730057230959,0.335,2489.6,2489.5,2.41780172]
[1730057231261,0.489,2489.6,2489.5,2.41780172]
[1730057231648,0.3242,2489.6,2489.5,2.41780172]
[1730057231854,0.3242,2489.6,2489.5,4.42623714]
[1730057232055,0.824,2489.6,2489.5,4.42623714]
[1730057232361,0.4998,2489.6,2489.5,4.42623714]
[1730057232762,0.824,2489.6,2489.5,4.42623714]
[1730057233156,5.18315172,2489.9,2489.8,0.4021]
[1730057233360,6.00715172,2489.9,2489.8,0.4021]
[1730057233867,2.79935172,2489.9,2489.8,0.848]
[1730057234862,4.21292,2490.2,2489.8,1.60516172]
[1730057235066,1.56134172,2490.0,2489.9,0.40208]
[1730057235466,0.40208,2489.9,2489.8,0.84798]
[1730057235666,1.56134172,2489.9,2489.8,0.84798]
[1730057236757,2.38534172,2489.9,2489.8,0.84798]
[1730057236968,1.98326172,2489.9,2489.8,0.84798]
[1730057237968,2.38534172,2489.9,2489.8,0.84798]
[1730057238757,3.2078,2490.2,2489.8,1.60516172]
[1730057238969,3.2078,2490.2,2490.0,1.56132172]
[1730057238970,0.824,2490.1,2490.0,1.56132172]
[1730057239267,0.824,2490.1,2490.0,1.99452172]
[1730057240172,1.22605,2490.1,2490.0,1.99452172]
[1730057240470,4.36706172,2490.2,2490.0,1.59246172]
[1730057240770,5.59310172,2490.2,2490.1,0.40205]
[1730057241070,5.59310172,2490.2,2490.1,0.4379]
[1730057242867,5.59310172,2490.2,2490.1,0.83995]
[1730057243060,5.59310172,2490.2,2490.1,0.4379]
[1730057243455,5.59310172,2490.2,2490.1,0.83995]
[1730057243863,4.43384,2490.2,2490.1,0.83995]
[1730057244172,5.59310172,2490.2,2490.1,0.83995]
[1730057244363,2.38530172,2490.2,2490.1,0.4379]
[1730057245464,2.38530172,2490.2,2490.1,1.99921172]
[1730057245465,0.824,2490.2,2490.1,1.99921172]
[1730057245975,1.22603,2490.2,2490.1,1.99921172]
[1730057246266,0.824,2490.2,2490.1,1.99921172]
[1730057247566,0.442,2490.3,2490.1,1.59716172]
[1730057247869,1.22603,2490.3,2490.2,1.56129172]
[1730057248061,1.22603,2490.3,2490.2,1.15926172]
[1730057248258,1.22603,2490.3,2490.2,1.56129172]
[1730057250162,0.824,2490.3,2490.2,1.56129172]
[1730057250970,1.15926172,2490.4,2490.2,1.15926172]
[1730057251174,3.6461,2490.5,2490.4,0.402]
[1730057251175,2.38525172,2490.5,2490.4,0.402]
[1730057251367,0.824,2490.5,2490.4,1.56126172]
[1730057251563,0.824,2490.5,2490.4,2.44166172]
[1730057252371,1.22598,2490.5,2490.4,2.44166172]
[1730057253479,0.824,2490.5,2490.4,2.44166172]
[1730057255172,1.22598,2490.5,2490.4,2.44166172]
[1730057255571,0.824,2490.5,2490.4,2.44166172]
[1730057256480,1.22598,2490.5,2490.4,2.44166172]
[1730057256679,0.824,2490.5,2490.4,2.44166172]
[1730057256868,1.22598,2490.5,2490.4,2.44166172]
[1730057258683,3.2078,2490.8,2490.4,2.03966172]
[1730057258880,5.18801172,2490.8,2490.7,1.15926172]
[1730057259077,5.61006172,2490.8,2490.7,1.15926172]
[1730057259382,6.01199172,2490.8,2490.7,1.15926172]
[1730057259680,6.01199172,2490.8,2490.7,1.56121172]
[1730057259681,4.4508,2490.8,2490.7,1.56121172]
[1730057259979,6.01199172,2490.8,2490.6,1.56121172]
[1730057260180,0.40195,2490.7,2490.6,1.56121172]
[1730057261477,0.40195,2490.7,2490.6,1.15926172]
[1730057261876,4.43374,2490.8,2490.7,0.40195]
[1730057262181,4.43374,2490.8,2490.7,1.99021172]
[1730057262379,4.0318,2490.8,2490.7,1.99021172]
[1730057263884,1.2259,2491.0,2490.9,0.40191]
[1730057264069,1.97375172,2491.1,2490.9,1.15926172]
[1730057264274,2.79775172,2491.1,2491.0,0.4019]
[1730057264580,2.39586172,2491.1,2491.0,0.4019]
[1730057265079,2.79775172,2491.1,2491.0,0.4019]
[1730057266185,1.63849,2491.1,2491.0,0.4019]
[1730057266380,1.63849,2491.1,2490.9,1.15926172]
[1730057266381,2.38515172,2491.1,2490.9,1.15926172]
[1730057266577,2.38515172,2491.1,2490.8,1.24473]
[1730057266578,0.40192,2490.9,2490.8,1.24473]
[1730057266784,1.56118172,2490.9,2490.8,2.40399172]
[1730057266991,1.56118172,2490.9,2490.8,0.8428]
[1730057267484,1.56118172,2490.9,2490.8,1.24473]
[1730057268476,1.15926172,2490.9,2490.7,1.58826172]
[1730057268680,1.98539172,2490.8,2490.7,1.58826172]
[1730057268882,1.98539172,2490.8,2490.7,1.99021172]
[1730057269078,1.98539172,2490.8,2490.7,1.58826172]
[1730057269284,1.98539172,2490.8,2490.7,0.429]
[1730057271779,0.40195,2490.7,2490.6,2.41422172]
[1730057278390,0.823,2490.8,2490.6,2.01226172]
[1730057278596,0.40195,2490.8,2490.7,1.56118172]
[1730057280193,0.823,2490.9,2490.7,1.15926172]
[1730057280498,0.823,2490.9,2490.8,1.97739172]
[1730057280993,0.823,2490.9,2490.8,5.99179172]
[1730057281194,0.40189,2491.1,2490.8,5.99179172]
[1730057281195,0.40189,2491.1,2491.0,0.4019]
[1730057281395,0.40189,2491.1,2491.0,1.56116172]
[1730057281605,5.63716172,2491.2,2491.1,0.40189]
[1730057281606,6.03904172,2491.2,2491.1,0.40189]
[1730057281897,6.03904172,2491.2,2491.1,0.81239]
[1730057283209,5.59193172,2491.2,2491.1,0.81239]
[1730057283605,1.98226172,2491.2,2491.1,0.81239]
[1730057283807,2.38413172,2491.2,2491.1,0.81239]
[1730057284303,0.4171,2491.3,2491.2,0.40187]
[1730057284304,0.823,2491.3,2491.2,0.40187]
[1730057284508,0.823,2491.3,2491.1,0.81237]
[1730057284509,1.15926172,2491.2,2491.1,0.81237]
[1730057286108,1.98226172,2491.2,2491.1,0.81237]
[1730057287214,0.823,2491.2,2491.1,0.81237]
[1730057287413,1.98226172,2491.2,2491.1,0.81237]
[1730057288412,0.823,2491.3,2491.2,0.40187]
[1730057288708,2.82299172,2491.5,2491.4,0.40184]
[1730057289206,1.98226172,2491.5,2491.4,0.40184]
[1730057289398,2.38408172,2491.5,2491.4,0.40184]
[1730057290011,1.56108172,2491.5,2491.4,0.40184]
[1730057290204,3.2078,2491.6,2491.4,1.15926172]
[1730057290405,3.60962,2491.6,2491.5,0.4283]
[1730057290707,3.60962,2491.6,2491.5,0.83012]
[1730057291013,3.60962,2491.6,2491.5,0.4283]
[1730057292807,3.60962,2491.6,2491.5,1.98938172]
[1730057293007,3.60962,2491.6,2491.5,0.83012]
[1730057293208,3.60962,2491.6,2491.5,0.4283]
[1730057294310,3.60962,2491.6,2491.5,0.83012]
[1730057294618,3.60962,2491.6,2491.5,0.4283]
[1730057296413,4.76888172,2491.6,2491.5,0.4283]
[1730057297122,1.56108172,2491.6,2491.5,0.4283]
[1730057297810,1.56108172,2491.6,2491.5,0.83012]
[1730057298009,1.56108172,2491.6,2491.5,0.4283]
[1730057299019,1.56108172,2491.6,2491.5,0.83012]
[1730057299320,5.59186172,2491.7,2491.6,0.40181]
[1730057299517,5.59186172,2491.7,2491.6,0.411]
[1730057299715,5.59186172,2491.7,2491.6,0.81281]
[1730057300023,5.59186172,2491.7,2491.6,0.411]
[1730057301312,5.59186172,2491.7,2491.6,0.81281]
[1730057301523,5.59185172,2491.7,2491.6,0.81281]
[1730057302224,1.2434,2491.8,2491.7,0.40179]
[1730057303121,1.64517,2491.8,2491.7,0.40179]
[1730057303616,1.64517,2491.8,2491.7,1.56105172]
[1730057304224,0.40177,2491.8,2491.7,1.56105172]
[1730057304518,1.56103172,2491.8,2491.7,1.15926172]
[1730057305020,1.56103172,2491.8,2491.7,1.56105172]
[1730057305923,1.56103172,2491.8,2491.7,1.15926172]
[1730057306313,0.40179,2491.7,2491.6,0.411]
[1730057306513,1.99515172,2491.7,2491.6,0.411]
[1730057306924,1.99515172,2491.7,2491.6,0.81281]
[1730057307825,1.99515172,2491.7,2491.6,1.22481]
[1730057308623,0.83589,2491.7,2491.6,1.22481]
[1730057309019,0.40178,2491.8,2491.6,1.98226172]
[1730057309314,0.40179,2491.7,2491.6,2.38405172]
[1730057309518,4.21216,2492.0,2491.6,2.38405172]
[1730057309728,29.925,2494.6,2491.9,2.31852344]
[1730057309729,3.2078,2493.1,2491.9,2.31852344]
[1730057310022,3.2078,2493.7,2493.0,1.15926172]
[1730057310229,3.2078,2493.7,2492.9,3.2078]
[1730057310230,0.8275,2493.6,2492.9,3.2078]
[1730057310421,2.41735172,2493.6,2493.2,4.36706172]
[1730057310624,1.15926172,2493.5,2493.2,4.36706172]
[1730057310821,1.15926172,2493.5,2493.2,3.2078]
[1730057311017,0.967,2493.5,2493.2,3.2078]
[1730057311231,0.967,2493.5,2493.3,1.15926172]
[1730057311425,2.98286172,2493.6,2493.3,1.15926172]
[1730057311620,1.15926172,2493.5,2493.2,4.36706172]
[1730057311819,1.15926172,2493.3,2492.9,3.2078]
[1730057312026,1.8236,2493.6,2492.8,1.15926172]
[1730057312027,1.15926172,2493.1,2492.8,1.15926172]
[1730057312231,0.4149,2493.0,2492.8,1.15926172]
[1730057312430,1.15926172,2492.9,2492.7,1.2773]
[1730057312618,1.15926172,2492.9,2492.7,0.8374]
[1730057313222,1.15926172,2492.9,2492.8,1.15926172]
[1730057314333,0.4149,2493.0,2492.8,1.15926172]
[1730057314534,0.4149,2493.0,2492.7,4.44682]
[1730057315029,0.4149,2493.0,2492.7,4.0452]
[1730057315331,0.4149,2493.0,2492.8,0.4016]
[1730057315629,0.8734,2493.2,2493.1,0.40156]
[1730057315630,0.967,2493.2,2493.1,0.40156]
[1730057316426,0.4485,2493.4,2493.3,0.40153]
[1730057316628,0.967,2493.5,2493.4,0.40152]
[1730057316827,0.967,2493.5,2493.3,0.40152]
[1730057317031,0.967,2493.5,2493.4,0.40152]
[1730057317222,0.4485,2493.8,2493.2,0.8435]
[1730057317422,0.967,2493.6,2493.4,0.4015]
[1730057318630,0.967,2493.6,2493.5,0.4015]
[1730057319429,0.4485,2493.8,2493.4,0.4413]
[1730057319733,0.4485,2493.8,2493.7,0.40147]
[1730057320230,4.4589,2493.8,2493.7,0.40147]
[1730057320435,5.4249,2493.8,2493.7,0.40147]
[1730057320828,1.4145,2493.8,2493.7,0.40147]